[Event "*** Titled Tuesday Blitz"]
[Site "Chess.com"]
[Date "2021.03.09"]
[Round "1"]
[White "FormerProdigy"]
[Black "bsnsun"]
[Result "1-0"]
[WhiteElo "2851"]
[BlackElo "2446"]
[TimeControl "180+1"]
[EndTime "10:06:31 PST"]
[Termination "FormerProdigy won by resignation"]

1. c4 {[%clk 0:03:00.9]} 1... Nf6 {[%clk 0:02:55.3]} 2. Nf3 {[%clk 0:02:59.7]}
2... e6 {[%clk 0:02:55.8]} 3. Nc3 {[%clk 0:02:59.2]} 3... d5 {[%clk 0:02:55.9]}
4. e3 {[%clk 0:02:59.5]} 4... dxc4 {[%clk 0:02:54.2]} 5. Bxc4 {[%clk 0:02:58.7]}
5... c5 {[%clk 0:02:55.1]} 6. O-O {[%clk 0:02:49.4]} 6... a6 {[%clk 0:02:55.1]}
7. b3 {[%clk 0:02:48.7]} 7... Nc6 {[%clk 0:02:52.6]} 8. Bb2 {[%clk 0:02:45.3]}
8... Be7 {[%clk 0:02:48.9]} 9. Rc1 {[%clk 0:02:35.2]} 9... O-O {[%clk
0:02:47.5]} 10. d4 {[%clk 0:02:34.6]} 10... cxd4 {[%clk 0:02:46.1]} 11. exd4
{[%clk 0:02:33.2]} 11... b5 {[%clk 0:02:38.9]} 12. Bd3 {[%clk 0:02:33.1]} 12...
Bb7 {[%clk 0:02:39.3]} 13. Bb1 {[%clk 0:02:24.8]} 13... Rc8 {[%clk 0:02:35.1]}
14. Re1 {[%clk 0:02:09.4]} 14... Nb4 {[%clk 0:02:33.2]} 15. Ne5 {[%clk
0:02:06.6]} 15... Nbd5 {[%clk 0:02:32.9]} 16. Nxd5 {[%clk 0:01:58.8]} 16... Qxd5
{[%clk 0:02:30.9]} 17. f3 {[%clk 0:01:56.1]} 17... Rfd8 {[%clk 0:02:28.6]} 18.
Qe2 {[%clk 0:01:51.9]} 18... Rxc1 {[%clk 0:02:23.9]} 19. Rxc1 {[%clk 0:01:52.8]}
19... Rc8 {[%clk 0:02:00.2]} 20. Rxc8+ {[%clk 0:01:40.7]} 20... Bxc8 {[%clk
0:02:01.1]} 21. Qc2 {[%clk 0:01:41.1]} 21... Qb7 {[%clk 0:01:53.4]} 22. Nc6
{[%clk 0:01:30.2]} 22... Kf8 {[%clk 0:01:22.1]} 23. Nxe7 {[%clk 0:01:24.5]}
23... Kxe7 {[%clk 0:01:23]} 24. Qc5+ {[%clk 0:01:21.3]} 24... Ke8 {[%clk
0:01:04.4]} 25. Ba3 {[%clk 0:01:17.9]} 25... Nd5 {[%clk 0:01:04.4]} 26. Qf8+
{[%clk 0:01:14.6]} 26... Kd7 {[%clk 0:01:04.1]} 27. Qxf7+ {[%clk 0:01:15.5]}
27... Kc6 {[%clk 0:01:04]} 28. Qxb7+ {[%clk 0:01:14.6]} 28... Bxb7 {[%clk
0:01:04.1]} 29. Bxh7 {[%clk 0:01:12]} 29... Nc3 {[%clk 0:00:56.5]} 30. h4 {[%clk
0:01:04.4]} 30... Nxa2 {[%clk 0:00:52.7]} 31. Bf8 {[%clk 0:01:04.1]} 31... a5
{[%clk 0:00:48.3]} 32. Bxg7 {[%clk 0:01:00.8]} 32... a4 {[%clk 0:00:47.8]} 33.
bxa4 {[%clk 0:00:59.6]} 33... bxa4 {[%clk 0:00:48.7]} 34. h5 {[%clk 0:00:45.9]}
34... Nc3 {[%clk 0:00:48.5]} 35. h6 {[%clk 0:00:41.6]} 35... Kd5 {[%clk
0:00:37]} 36. Be4+ {[%clk 0:00:36]} 36... Nxe4 {[%clk 0:00:32.9]} 37. fxe4+
{[%clk 0:00:36.9]} 37... Kc4 {[%clk 0:00:33.3]} 38. h7 {[%clk 0:00:37.8]} 38...
a3 {[%clk 0:00:32.5]} 39. h8=Q {[%clk 0:00:36.1]} 1-0

[Event "*** Titled Tuesday Blitz"]
[Site "Chess.com"]
[Date "2021.03.09"]
[Round "1"]
[White "Herman-NY"]
[Black "Elshan1985"]
[Result "0-1"]
[WhiteElo "2455"]
[BlackElo "2885"]
[TimeControl "180+1"]
[EndTime "10:06:34 PST"]
[Termination "Elshan1985 won on time"]

1. e4 {[%clk 0:02:59.7]} 1... c5 {[%clk 0:02:59.4]} 2. Nf3 {[%clk 0:02:59.2]}
2... d6 {[%clk 0:02:58.6]} 3. d4 {[%clk 0:02:59.8]} 3... cxd4 {[%clk 0:02:59.2]}
4. Nxd4 {[%clk 0:03:00.7]} 4... Nf6 {[%clk 0:02:59.4]} 5. Nc3 {[%clk 0:03:01.4]}
5... Nc6 {[%clk 0:02:59.9]} 6. Bc4 {[%clk 0:03:01.4]} 6... e6 {[%clk 0:02:59]}
7. Be3 {[%clk 0:03:01.3]} 7... a6 {[%clk 0:02:59.1]} 8. Qe2 {[%clk 0:03:01.6]}
8... Qc7 {[%clk 0:02:59.1]} 9. O-O-O {[%clk 0:03:01.9]} 9... Na5 {[%clk
0:02:59.7]} 10. Bd3 {[%clk 0:03:01]} 10... b5 {[%clk 0:02:59]} 11. f4 {[%clk
0:02:35.2]} 11... b4 {[%clk 0:02:52.3]} 12. Na4 {[%clk 0:02:35.4]} 12... Bd7
{[%clk 0:02:48.7]} 13. b3 {[%clk 0:02:35.8]} 13... Be7 {[%clk 0:02:41.7]} 14. g4
{[%clk 0:02:27.9]} 14... Bxa4 {[%clk 0:02:26.2]} 15. bxa4 {[%clk 0:02:27.6]}
15... d5 {[%clk 0:02:26.6]} 16. e5 {[%clk 0:02:20.3]} 16... Ne4 {[%clk
0:02:26.6]} 17. Bxe4 {[%clk 0:01:58.5]} 17... dxe4 {[%clk 0:02:27.5]} 18. Nb3
{[%clk 0:01:58.9]} 18... Nc4 {[%clk 0:02:15.5]} 19. Rd4 {[%clk 0:01:56.1]} 19...
Nb6 {[%clk 0:02:03]} 20. a5 {[%clk 0:01:28.1]} 20... Nd5 {[%clk 0:02:01.8]} 21.
Bd2 {[%clk 0:00:48.8]} 21... e3 {[%clk 0:01:50.4]} 22. Bxe3 {[%clk 0:00:40.8]}
22... Nc3 {[%clk 0:01:50.8]} 23. Qc4 {[%clk 0:00:35.7]} 23... Qb7 {[%clk
0:01:50.6]} 24. Re1 {[%clk 0:00:26]} 24... Rc8 {[%clk 0:01:50.3]} 25. Qd3 {[%clk
0:00:22.1]} 25... Nb5 {[%clk 0:01:40]} 26. Rc4 {[%clk 0:00:16]} 26... O-O {[%clk
0:01:40.5]} 27. Bb6 {[%clk 0:00:11.6]} 27... Na3 {[%clk 0:01:35.5]} 28. Rxc8
{[%clk 0:00:11]} 28... Rxc8 {[%clk 0:01:36.4]} 29. Re2 {[%clk 0:00:09.1]} 29...
Qh1+ {[%clk 0:01:25.4]} 30. Qd1 {[%clk 0:00:09.3]} 30... Qc6 {[%clk 0:01:20.4]}
31. Bd4 {[%clk 0:00:05.6]} 31... Qa4 {[%clk 0:01:09.7]} 32. Bb2 {[%clk
0:00:03.7]} 32... Nc4 {[%clk 0:01:06.9]} 33. Kb1 {[%clk 0:00:04.1]} 33... Rd8
{[%clk 0:00:59.7]} 34. Qh1 {[%clk 0:00:04.3]} 34... Nxa5 {[%clk 0:00:54.9]} 35.
Rd2 {[%clk 0:00:02.3]} 35... Rc8 {[%clk 0:00:50.2]} 36. Qb7 {[%clk 0:00:01.5]}
36... Nxb7 {[%clk 0:00:49.6]} 0-1

[Event "*** Titled Tuesday Blitz"]
[Site "Chess.com"]
[Date "2021.03.09"]
[Round "1"]
[White "WPWPWP-2015"]
[Black "SwitchOnTwitch"]
[Result "1-0"]
[WhiteElo "2504"]
[BlackElo "2089"]
[TimeControl "180+1"]
[EndTime "10:06:35 PST"]
[Termination "WPWPWP-2015 won by resignation"]

1. d4 {[%clk 0:02:23.9]} 1... c6 {[%clk 0:03:00.9]} 2. e4 {[%clk 0:02:20.3]}
2... d5 {[%clk 0:03:01.8]} 3. e5 {[%clk 0:02:17.8]} 3... c5 {[%clk 0:03:01.6]}
4. c4 {[%clk 0:02:14.9]} 4... e6 {[%clk 0:02:49.9]} 5. Nf3 {[%clk 0:02:13]} 5...
cxd4 {[%clk 0:02:49]} 6. Nxd4 {[%clk 0:02:09.9]} 6... Nc6 {[%clk 0:02:46.2]} 7.
Nxc6 {[%clk 0:02:06.5]} 7... bxc6 {[%clk 0:02:46.4]} 8. cxd5 {[%clk 0:02:04.8]}
8... cxd5 {[%clk 0:02:45.9]} 9. Bd3 {[%clk 0:02:04.5]} 9... Bc5 {[%clk 0:02:38]}
10. Qg4 {[%clk 0:02:00]} 10... Kf8 {[%clk 0:02:31.4]} 11. O-O {[%clk 0:01:58.4]}
11... Ne7 {[%clk 0:02:30.4]} 12. Nd2 {[%clk 0:01:49.4]} 12... Ng6 {[%clk
0:02:28]} 13. Nf3 {[%clk 0:01:48.7]} 13... a5 {[%clk 0:02:24.8]} 14. h4 {[%clk
0:01:46.4]} 14... Ba6 {[%clk 0:02:22.1]} 15. Bxa6 {[%clk 0:01:45.1]} 15... Rxa6
{[%clk 0:02:23]} 16. h5 {[%clk 0:01:45]} 16... Ne7 {[%clk 0:02:23.2]} 17. h6
{[%clk 0:01:45.2]} 17... gxh6 {[%clk 0:02:17.5]} 18. Bxh6+ {[%clk 0:01:43.7]}
18... Ke8 {[%clk 0:02:17.8]} 19. Bg5 {[%clk 0:01:33.9]} 19... Rg8 {[%clk
0:02:12.7]} 20. Qh4 {[%clk 0:01:33.5]} 20... Kd7 {[%clk 0:01:40.3]} 21. Rac1
{[%clk 0:01:30.6]} 21... Rc6 {[%clk 0:01:36.6]} 22. Qa4 {[%clk 0:01:27.6]} 22...
Qb6 {[%clk 0:01:31.9]} 23. Rc3 {[%clk 0:01:00.7]} 23... Bb4 {[%clk 0:01:27.8]}
24. Rb3 {[%clk 0:00:54.7]} 24... Qa6 {[%clk 0:01:09]} 25. Rc1 {[%clk 0:00:42.2]}
25... Rc8 {[%clk 0:01:06.9]} 26. Nd4 {[%clk 0:00:38.2]} 26... Nf5 {[%clk
0:00:37.9]} 27. Nxc6 {[%clk 0:00:37.3]} 27... Rxc6 {[%clk 0:00:37.6]} 28. a3
{[%clk 0:00:31.6]} 28... Nd4 {[%clk 0:00:36.2]} 29. Rxc6 {[%clk 0:00:30.5]}
29... Qxc6 {[%clk 0:00:35]} 30. Qxc6+ {[%clk 0:00:29.8]} 30... Kxc6 {[%clk
0:00:35.9]} 31. Rd3 {[%clk 0:00:28.4]} 31... Ne2+ {[%clk 0:00:35.7]} 32. Kf1
{[%clk 0:00:28.3]} 1-0

[Event "*** Titled Tuesday Blitz"]
[Site "Chess.com"]
[Date "2021.03.09"]
[Round "1"]
[White "Chamal_Gedgafov"]
[Black "MatyChess1"]
[Result "0-1"]
[WhiteElo "2278"]
[BlackElo "2581"]
[TimeControl "180+1"]
[EndTime "10:06:36 PST"]
[Termination "MatyChess1 won on time"]

1. d4 {[%clk 0:02:59.2]} 1... d5 {[%clk 0:03:00.1]} 2. c4 {[%clk 0:02:58.9]}
2... e6 {[%clk 0:03:00.6]} 3. Nc3 {[%clk 0:02:55.6]} 3... Bb4 {[%clk 0:03:01.1]}
4. cxd5 {[%clk 0:02:50.3]} 4... exd5 {[%clk 0:03:02]} 5. Nf3 {[%clk 0:02:50.2]}
5... Nf6 {[%clk 0:02:59.3]} 6. Bg5 {[%clk 0:02:49.4]} 6... Qd6 {[%clk
0:02:59.5]} 7. e3 {[%clk 0:02:45.9]} 7... Ne4 {[%clk 0:02:54.6]} 8. Qc2 {[%clk
0:02:29.7]} 8... Qg6 {[%clk 0:02:24.9]} 9. Bd3 {[%clk 0:01:54.9]} 9... h6 {[%clk
0:02:19]} 10. Bh4 {[%clk 0:01:17.3]} 10... Bxc3+ {[%clk 0:02:04.8]} 11. bxc3
{[%clk 0:01:12.1]} 11... Qxg2 {[%clk 0:02:03.4]} 12. Ke2 {[%clk 0:00:36.7]}
12... Qg6 {[%clk 0:01:07.3]} 13. Rhg1 {[%clk 0:00:30.9]} 13... Bg4 {[%clk
0:01:06.5]} 14. Rg3 {[%clk 0:00:20.5]} 14... Nxg3+ {[%clk 0:01:05.1]} 15. Bxg3
{[%clk 0:00:15.4]} 15... Qh5 {[%clk 0:01:04.5]} 16. Qa4+ {[%clk 0:00:11.1]}
16... Nd7 {[%clk 0:01:01.7]} 17. Bb5 {[%clk 0:00:09.5]} 17... Bxf3+ {[%clk
0:00:59.3]} 18. Kd2 {[%clk 0:00:09.9]} 18... c6 {[%clk 0:01:00.2]} 19. Bxc6
{[%clk 0:00:09.6]} 19... bxc6 {[%clk 0:01:01.1]} 20. Qxc6 {[%clk 0:00:09.9]}
20... O-O {[%clk 0:00:57.9]} 21. Qxd7 {[%clk 0:00:08.9]} 21... Rac8 {[%clk
0:00:56.4]} 22. Qxa7 {[%clk 0:00:07.6]} 22... Qf5 {[%clk 0:00:31]} 23. Rg1
{[%clk 0:00:02.2]} 23... Ra8 {[%clk 0:00:29.6]} 0-1

[Event "*** Titled Tuesday Blitz"]
[Site "Chess.com"]
[Date "2021.03.09"]
[Round "1"]
[White "igorkovalenko"]
[Black "erdni1993"]
[Result "0-1"]
[WhiteElo "2937"]
[BlackElo "2490"]
[TimeControl "180+1"]
[EndTime "10:06:37 PST"]
[Termination "erdni1993 won by resignation"]

1. e4 {[%clk 0:02:53.6]} 1... c5 {[%clk 0:02:59.2]} 2. Nc3 {[%clk 0:02:53]} 2...
e6 {[%clk 0:02:56.6]} 3. g3 {[%clk 0:02:50.7]} 3... d6 {[%clk 0:02:52.6]} 4. Bg2
{[%clk 0:02:47.3]} 4... Nc6 {[%clk 0:02:53]} 5. d3 {[%clk 0:02:47]} 5... g6
{[%clk 0:02:53]} 6. Be3 {[%clk 0:02:38.7]} 6... Bg7 {[%clk 0:02:53.4]} 7. Qd2
{[%clk 0:02:39.2]} 7... Rb8 {[%clk 0:02:51.3]} 8. Nh3 {[%clk 0:02:30.2]} 8... b5
{[%clk 0:02:48.2]} 9. O-O {[%clk 0:02:29.7]} 9... b4 {[%clk 0:02:46.1]} 10. Nd1
{[%clk 0:02:27.8]} 10... Nge7 {[%clk 0:02:45.2]} 11. Bh6 {[%clk 0:02:26.2]}
11... O-O {[%clk 0:02:42.9]} 12. Bxg7 {[%clk 0:02:25.8]} 12... Kxg7 {[%clk
0:02:42.8]} 13. Ne3 {[%clk 0:02:25.1]} 13... f5 {[%clk 0:02:34.4]} 14. exf5
{[%clk 0:02:23.4]} 14... exf5 {[%clk 0:02:29]} 15. Nf4 {[%clk 0:02:22.9]} 15...
Qe8 {[%clk 0:02:15.6]} 16. Rae1 {[%clk 0:02:21.8]} 16... Qf7 {[%clk 0:02:15.5]}
17. Ned5 {[%clk 0:02:09.7]} 17... Re8 {[%clk 0:02:13.8]} 18. Nc7 {[%clk
0:02:07.4]} 18... Rg8 {[%clk 0:02:00.3]} 19. c3 {[%clk 0:01:56.6]} 19... Ne5
{[%clk 0:01:53.1]} 20. d4 {[%clk 0:01:50.4]} 20... bxc3 {[%clk 0:01:41]} 21.
bxc3 {[%clk 0:01:44.9]} 21... cxd4 {[%clk 0:01:32.1]} 22. cxd4 {[%clk
0:01:43.2]} 22... Nc4 {[%clk 0:01:30.1]} 23. Qc3 {[%clk 0:01:40.8]} 23... d5
{[%clk 0:00:59.5]} 24. Rxe7 {[%clk 0:01:02.9]} 24... Qxe7 {[%clk 0:01:00.4]} 25.
Ncxd5 {[%clk 0:01:02.8]} 25... Qd6 {[%clk 0:00:56.4]} 26. Qxc4 {[%clk
0:01:01.1]} 26... Ba6 {[%clk 0:00:56.9]} 27. Qa4 {[%clk 0:00:38.4]} 27... Bxf1
{[%clk 0:00:55.6]} 28. Bxf1 {[%clk 0:00:03.9]} 28... Rb1 {[%clk 0:00:54.8]} 29.
Qxa7+ {[%clk 0:00:03.5]} 29... Kh8 {[%clk 0:00:54.8]} 30. Kg2 {[%clk 0:00:03.6]}
30... Qc6 {[%clk 0:00:51.8]} 31. Be2 {[%clk 0:00:03]} 31... Rb7 {[%clk
0:00:46.3]} 32. Qa4 {[%clk 0:00:01.8]} 32... Qxa4 {[%clk 0:00:45.4]} 0-1

[Event "*** Titled Tuesday Blitz"]
[Site "Chess.com"]
[Date "2021.03.09"]
[Round "1"]
[White "FMJoseHerrera"]
[Black "david_alex"]
[Result "1-0"]
[WhiteElo "2502"]
[BlackElo "2072"]
[TimeControl "180+1"]
[EndTime "10:06:37 PST"]
[Termination "FMJoseHerrera won by resignation"]

1. Nf3 {[%clk 0:02:57.9]} 1... Nf6 {[%clk 0:02:59]} 2. g3 {[%clk 0:02:57.4]}
2... e6 {[%clk 0:02:55.7]} 3. Bg2 {[%clk 0:02:57.3]} 3... d5 {[%clk 0:02:55.1]}
4. O-O {[%clk 0:02:57.2]} 4... Be7 {[%clk 0:02:54.2]} 5. d3 {[%clk 0:02:55.5]}
5... O-O {[%clk 0:02:53.7]} 6. c3 {[%clk 0:02:52.6]} 6... c5 {[%clk 0:02:52.6]}
7. a3 {[%clk 0:02:52.3]} 7... Nc6 {[%clk 0:02:49.9]} 8. b4 {[%clk 0:02:51.5]}
8... b6 {[%clk 0:02:49.4]} 9. Nbd2 {[%clk 0:02:50.3]} 9... Qc7 {[%clk
0:02:45.1]} 10. Bb2 {[%clk 0:02:49.9]} 10... Bb7 {[%clk 0:02:38]} 11. Qb3 {[%clk
0:02:47.1]} 11... Rad8 {[%clk 0:02:09]} 12. Rfe1 {[%clk 0:02:41.3]} 12... e5
{[%clk 0:01:58.8]} 13. e4 {[%clk 0:02:14.9]} 13... dxe4 {[%clk 0:01:58.2]} 14.
dxe4 {[%clk 0:02:13.9]} 14... Rd3 {[%clk 0:01:39.5]} 15. Nc4 {[%clk 0:01:44.7]}
15... b5 {[%clk 0:01:30.9]} 16. Ne3 {[%clk 0:01:39.3]} 16... c4 {[%clk
0:01:28.4]} 17. Qc2 {[%clk 0:01:39.3]} 17... Rfd8 {[%clk 0:01:02.4]} 18. a4
{[%clk 0:01:29.8]} 18... a6 {[%clk 0:01:00.1]} 19. axb5 {[%clk 0:01:28.7]} 19...
axb5 {[%clk 0:01:01]} 20. Nd5 {[%clk 0:01:12.9]} 20... Nxd5 {[%clk 0:00:54.3]}
21. exd5 {[%clk 0:01:13.8]} 21... R8xd5 {[%clk 0:00:39.9]} 22. Re2 {[%clk
0:01:02.9]} 22... Bf6 {[%clk 0:00:38.5]} 23. Nd2 {[%clk 0:01:00.2]} 23... Rd8
{[%clk 0:00:36]} 24. Ne4 {[%clk 0:00:59.5]} 24... Qe7 {[%clk 0:00:33.4]} 25. Nc5
{[%clk 0:00:57.3]} 25... R3d6 {[%clk 0:00:23.1]} 26. h3 {[%clk 0:00:43.3]} 26...
Qc7 {[%clk 0:00:20.8]} 27. Bc1 {[%clk 0:00:42.8]} 27... Ne7 {[%clk 0:00:18.8]}
28. Nxb7 {[%clk 0:00:41.9]} 28... Nd5 {[%clk 0:00:12.9]} 29. Nxd6 {[%clk
0:00:40.5]} 29... Rxd6 {[%clk 0:00:13.1]} 30. Bxd5 {[%clk 0:00:38.3]} 30... Rxd5
{[%clk 0:00:13]} 31. Ra8+ {[%clk 0:00:37.5]} 31... Rd8 {[%clk 0:00:12.4]} 32.
Rxd8+ {[%clk 0:00:37.3]} 32... Qxd8 {[%clk 0:00:13.3]} 33. Be3 {[%clk
0:00:37.2]} 1-0

[Event "*** Titled Tuesday Blitz"]
[Site "Chess.com"]
[Date "2021.03.09"]
[Round "1"]
[White "Rap_woyska"]
[Black "Konavets"]
[Result "1-0"]
[WhiteElo "2486"]
[BlackElo "2914"]
[TimeControl "180+1"]
[EndTime "10:06:38 PST"]
[Termination "Rap_woyska won by resignation"]

1. c4 {[%clk 0:02:56.8]} 1... Nf6 {[%clk 0:02:59.3]} 2. Nc3 {[%clk 0:02:56.6]}
2... e6 {[%clk 0:02:58.9]} 3. e4 {[%clk 0:02:57.1]} 3... c5 {[%clk 0:02:58.6]}
4. e5 {[%clk 0:02:56.7]} 4... Ng8 {[%clk 0:02:58.9]} 5. d4 {[%clk 0:02:57.3]}
5... cxd4 {[%clk 0:02:59.5]} 6. Qxd4 {[%clk 0:02:58]} 6... Nc6 {[%clk
0:02:59.7]} 7. Qf4 {[%clk 0:02:58.7]} 7... d6 {[%clk 0:02:59.9]} 8. Nf3 {[%clk
0:02:59]} 8... Nge7 {[%clk 0:02:55.7]} 9. exd6 {[%clk 0:02:58.3]} 9... Ng6
{[%clk 0:02:55.4]} 10. Qe4 {[%clk 0:02:49.5]} 10... Bxd6 {[%clk 0:02:52]} 11.
Be3 {[%clk 0:02:49.8]} 11... O-O {[%clk 0:02:48.4]} 12. O-O-O {[%clk 0:02:44.3]}
12... Qe7 {[%clk 0:02:42.5]} 13. h4 {[%clk 0:02:41.3]} 13... f5 {[%clk
0:02:41.5]} 14. Qc2 {[%clk 0:02:31.7]} 14... Bb4 {[%clk 0:02:37.4]} 15. a3
{[%clk 0:02:18.9]} 15... Ba5 {[%clk 0:02:34.9]} 16. Nb5 {[%clk 0:02:08.6]} 16...
a6 {[%clk 0:02:30.1]} 17. Nd6 {[%clk 0:02:06.5]} 17... Rd8 {[%clk 0:02:30.3]}
18. Bg5 {[%clk 0:01:47.4]} 18... Qf8 {[%clk 0:02:26.1]} 19. Bxd8 {[%clk
0:01:46.6]} 19... Bxd8 {[%clk 0:02:27]} 20. h5 {[%clk 0:01:42]} 20... Nge5
{[%clk 0:02:26.7]} 21. Nxe5 {[%clk 0:01:42.2]} 21... Nxe5 {[%clk 0:02:27.6]} 22.
f4 {[%clk 0:01:23.7]} 22... Nc6 {[%clk 0:02:24.2]} 23. c5 {[%clk 0:01:18.8]}
23... Bf6 {[%clk 0:02:24]} 24. Bc4 {[%clk 0:01:17.8]} 24... Bd7 {[%clk
0:02:17.2]} 25. Nxb7 {[%clk 0:01:12.1]} 25... Nd4 {[%clk 0:02:14.3]} 26. Qf2
{[%clk 0:00:54.5]} 26... Rb8 {[%clk 0:01:56.7]} 27. Rxd4 {[%clk 0:00:54.2]}
27... Bxd4 {[%clk 0:01:53.8]} 28. Qxd4 {[%clk 0:00:55.1]} 28... Rxb7 {[%clk
0:01:54.4]} 29. h6 {[%clk 0:00:54.4]} 29... gxh6 {[%clk 0:01:53.5]} 30. Rh3
{[%clk 0:00:35.4]} 30... Kf7 {[%clk 0:01:52.3]} 31. Rg3 {[%clk 0:00:33.1]} 31...
Rc7 {[%clk 0:01:50.4]} 32. b4 {[%clk 0:00:32.7]} 32... Ke8 {[%clk 0:01:29.1]}
33. Qe5 {[%clk 0:00:30.2]} 33... Rc6 {[%clk 0:01:28.9]} 34. Rg7 {[%clk
0:00:22.6]} 34... Kd8 {[%clk 0:00:42]} 35. Rxh7 {[%clk 0:00:22.9]} 35... Kc8
{[%clk 0:00:32.3]} 36. Rh8 {[%clk 0:00:22.6]} 1-0

[Event "*** Titled Tuesday Blitz"]
[Site "Chess.com"]
[Date "2021.03.09"]
[Round "1"]
[White "ChronicUnhappiness"]
[Black "jposthuma"]
[Result "0-1"]
[WhiteElo "2349"]
[BlackElo "2656"]
[TimeControl "180+1"]
[EndTime "10:06:38 PST"]
[Termination "jposthuma won on time"]

1. c4 {[%clk 0:03:00.9]} 1... Nf6 {[%clk 0:02:57.4]} 2. Nc3 {[%clk 0:03:00.4]}
2... c5 {[%clk 0:02:45.1]} 3. Nf3 {[%clk 0:02:57.7]} 3... g6 {[%clk 0:02:43.2]}
4. e3 {[%clk 0:02:57.7]} 4... Bg7 {[%clk 0:02:42.5]} 5. d4 {[%clk 0:02:57.7]}
5... cxd4 {[%clk 0:02:41.8]} 6. exd4 {[%clk 0:02:56.7]} 6... d5 {[%clk
0:02:42.3]} 7. cxd5 {[%clk 0:02:34]} 7... Nxd5 {[%clk 0:02:41.8]} 8. Qb3 {[%clk
0:02:19.1]} 8... Nb6 {[%clk 0:02:18.1]} 9. Bb5+ {[%clk 0:01:57.2]} 9... Bd7
{[%clk 0:02:04.9]} 10. O-O {[%clk 0:01:48.8]} 10... O-O {[%clk 0:02:00.7]} 11.
Bg5 {[%clk 0:01:47.1]} 11... Bxb5 {[%clk 0:01:53.4]} 12. Qxb5 {[%clk 0:01:41.2]}
12... Nc6 {[%clk 0:01:48.3]} 13. d5 {[%clk 0:01:28.2]} 13... Bxc3 {[%clk
0:01:29.9]} 14. dxc6 {[%clk 0:01:00.1]} 14... bxc6 {[%clk 0:01:29.5]} 15. Qxc6
{[%clk 0:01:01]} 15... Bxb2 {[%clk 0:01:28.4]} 16. Rad1 {[%clk 0:01:00.6]} 16...
Qe8 {[%clk 0:01:25.9]} 17. Qb7 {[%clk 0:00:50.8]} 17... e6 {[%clk 0:01:13.4]}
18. Be7 {[%clk 0:00:37.9]} 18... Qc8 {[%clk 0:00:53.7]} 19. Qe4 {[%clk
0:00:29.1]} 19... Re8 {[%clk 0:00:50.1]} 20. Bd6 {[%clk 0:00:25.7]} 20... Qc4
{[%clk 0:00:44]} 21. Qe3 {[%clk 0:00:21.3]} 21... Nd5 {[%clk 0:00:42.4]} 22. Qh6
{[%clk 0:00:14]} 22... Bg7 {[%clk 0:00:42]} 23. Qh3 {[%clk 0:00:09.7]} 23...
Rad8 {[%clk 0:00:32.6]} 24. Be5 {[%clk 0:00:08.7]} 24... Nf4 {[%clk 0:00:25.1]}
25. Bxf4 {[%clk 0:00:02.9]} 25... Qxf4 {[%clk 0:00:24.1]} 0-1

[Event "*** Titled Tuesday Blitz"]
[Site "Chess.com"]
[Date "2021.03.09"]
[Round "1"]
[White "lacafi"]
[Black "Shuvalov"]
[Result "0-1"]
[WhiteElo "2135"]
[BlackElo "2513"]
[TimeControl "180+1"]
[EndTime "10:06:38 PST"]
[Termination "Shuvalov won on time"]

1. d4 {[%clk 0:02:57.7]} 1... Nf6 {[%clk 0:02:56.5]} 2. Nf3 {[%clk 0:02:57.6]}
2... g6 {[%clk 0:02:56.4]} 3. c4 {[%clk 0:02:57.5]} 3... Bg7 {[%clk 0:02:56]} 4.
Nc3 {[%clk 0:02:58.1]} 4... d5 {[%clk 0:02:56.3]} 5. cxd5 {[%clk 0:02:59]} 5...
Nxd5 {[%clk 0:02:56.5]} 6. e4 {[%clk 0:02:59.9]} 6... Nxc3 {[%clk 0:02:56.7]} 7.
bxc3 {[%clk 0:03:00.8]} 7... O-O {[%clk 0:02:57.1]} 8. Be2 {[%clk 0:03:00.5]}
8... c5 {[%clk 0:02:57.1]} 9. Be3 {[%clk 0:03:00.2]} 9... b6 {[%clk 0:02:49.8]}
10. O-O {[%clk 0:02:57.5]} 10... Bb7 {[%clk 0:02:48.4]} 11. Qc2 {[%clk
0:02:54.8]} 11... Nd7 {[%clk 0:02:44.9]} 12. Rad1 {[%clk 0:02:53.6]} 12... cxd4
{[%clk 0:02:42.6]} 13. cxd4 {[%clk 0:02:52.7]} 13... Rc8 {[%clk 0:02:42.2]} 14.
Qb1 {[%clk 0:02:52.5]} 14... Nf6 {[%clk 0:02:39.7]} 15. d5 {[%clk 0:02:43.2]}
15... Qd7 {[%clk 0:02:11.4]} 16. Ne5 {[%clk 0:02:24.5]} 16... Qa4 {[%clk
0:02:05.4]} 17. Rd4 {[%clk 0:02:12.3]} 17... Qe8 {[%clk 0:01:42.4]} 18. f4
{[%clk 0:01:40.6]} 18... Nd7 {[%clk 0:01:36.4]} 19. Bb5 {[%clk 0:01:40]} 19...
Rc7 {[%clk 0:01:22.3]} 20. Nxd7 {[%clk 0:01:33.3]} 20... Bxd4 {[%clk 0:01:17.5]}
21. Bxd4 {[%clk 0:01:01.2]} 21... Rxd7 {[%clk 0:01:16.7]} 22. Qe1 {[%clk
0:00:40.7]} 22... a6 {[%clk 0:01:08.5]} 23. Bxd7 {[%clk 0:00:40.5]} 23... Qxd7
{[%clk 0:01:09.4]} 24. Qh4 {[%clk 0:00:40.2]} 24... f6 {[%clk 0:01:05.2]} 25.
Bxb6 {[%clk 0:00:34.7]} 25... Qa4 {[%clk 0:00:59.5]} 26. f5 {[%clk 0:00:28]}
26... Bxd5 {[%clk 0:00:55]} 27. fxg6 {[%clk 0:00:24.2]} 27... hxg6 {[%clk
0:00:51]} 28. Bc5 {[%clk 0:00:22.4]} 28... Re8 {[%clk 0:00:44.7]} 29. Bxe7
{[%clk 0:00:06.4]} 29... Rxe7 {[%clk 0:00:42.1]} 30. Qxf6 {[%clk 0:00:07]} 30...
Qxe4 {[%clk 0:00:38.3]} 31. Qf8+ {[%clk 0:00:03.7]} 31... Kh7 {[%clk 0:00:38.6]}
0-1